bitfinex/quotes_SOLUSD_20240703
["timestamp","ask_amount","ask_price","bid_price","bid_amount"]
[1720004030703,0.34,144.47,144.39,6.4883]
[1720004031778,32.29,144.45,144.39,6.4883]
[1720004031979,0.17,144.44,144.39,6.4883]
[1720004032181,0.17,144.47,144.39,6.4883]
[1720004033595,0.34,144.47,144.39,6.4883]
[1720004035194,7.08243387,144.5,144.41,6.2563]
[1720004035499,32.29,144.54,144.44,21.2611]
[1720004035717,32.29,144.54,144.45,1.38106158]
[1720004035880,32.29,144.54,144.44,21.2611]
[1720004035881,32.29,144.54,144.46,1.38096597]
[1720004036288,32.29,144.55,144.47,21.2611]
[1720004036503,32.29,144.55,144.48,1.38029689]
[1720004036693,32.29,144.55,144.47,21.2611]
[1720004038206,0.17,144.54,144.47,21.2611]
[1720004038416,0.34,144.54,144.47,21.2611]
[1720004039112,32.63,144.55,144.47,21.2611]
[1720004039591,39.71243387,144.55,144.47,21.2611]
[1720004039997,39.37243387,144.55,144.47,21.2611]
[1720004041105,32.29,144.55,144.47,21.2611]
[1720004042605,0.34,144.54,144.47,21.2611]
[1720004044194,0.17,144.54,144.47,21.2611]
[1720004044502,32.29,144.56,144.47,21.2611]
[1720004044808,0.34,144.55,144.47,21.2611]
[1720004045187,32.29,144.56,144.45,21.6577]
[1720004045388,7.08243387,144.59,144.44,5.62330245]
[1720004045389,7.08243387,144.59,144.49,21.6577]
[1720004045595,7.08243387,144.59,144.5,6.5464]
[1720004045785,32.29,144.6,144.5,6.5464]
[1720004047996,0.34,144.59,144.5,6.5464]
[1720004048303,0.17,144.59,144.51,16.6394]
[1720004048503,32.29,144.6,144.52,6.6645]
[1720004048922,3.34315129,144.61,144.53,16.6394]
[1720004049226,3.34315129,144.61,144.54,6.6645]
[1720004051218,3.34315129,144.61,144.59,6.9157]
[1720004052309,3.34315129,144.61,144.6,6.9156]
[1720004052507,3.51315129,144.61,144.6,6.9156]
[1720004053502,3.51315129,144.61,144.59,6.9159]
[1720004054830,3.34315129,144.61,144.6,6.9156]
[1720004056309,3.51315129,144.61,144.55,39.8483]
[1720004056509,32.63,144.6,144.56,6.9171]
[1720004056718,32.63,144.6,144.55,39.8483]
[1720004057319,32.29,144.6,144.57,17.2926]
[1720004057703,3.34315129,144.61,144.59,24.2063]
[1720004057907,3.34315129,144.61,144.6,6.9156]
[1720004058205,3.51315129,144.61,144.59,24.2061]
[1720004058411,3.34315129,144.61,144.59,24.2061]
[1720004058820,3.34315129,144.61,144.6,6.9156]
[1720004059414,3.34315129,144.61,144.56,17.2927]
[1720004059826,0.34,144.6,144.56,17.2927]
[1720004060038,3.34315129,144.61,144.58,17.2913]
[1720004060208,3.34315129,144.61,144.6,24.2046]
[1720004061328,3.51315129,144.61,144.58,6.9163]
[1720004061516,3.51315129,144.61,144.57,24.2089]
[1720004061716,0.34,144.6,144.57,17.292]
[1720004061910,32.63,144.6,144.55,22.5543]
[1720004062313,32.63,144.6,144.56,24.2109]
[1720004062514,32.63,144.6,144.56,17.2936]
[1720004062830,32.63,144.6,144.55,13.2048]
[1720004063030,32.63,144.6,144.55,30.4997]
[1720004063624,32.63,144.6,144.56,6.9172]
[1720004063822,32.63,144.6,144.55,23.5818]
[1720004064245,32.63,144.6,144.57,6.9167]
[1720004065025,32.63,144.6,144.57,24.2093]
[1720004066034,32.63,144.6,144.59,6.9161]
[1720004066232,0.34,144.6,144.59,6.9161]
[1720004067328,0.17,144.6,144.59,6.9161]
[1720004067637,3.34315129,144.61,144.59,6.9161]
[1720004068143,3.34315129,144.61,144.6,6.9156]
[1720004069043,3.34315129,144.61,144.59,17.2899]
[1720004069750,3.34315129,144.61,144.59,24.2059]
[1720004070044,3.34315129,144.61,144.6,6.9156]
[1720004072245,32.29,144.66,144.6,6.9156]
[1720004072420,0.34,144.65,144.6,6.9156]
[1720004073239,32.29,144.63,144.59,24.2058]
[1720004073448,32.29,144.63,144.6,6.9154]
[1720004073851,0.34,144.65,144.61,17.2877]
[1720004074027,32.29,144.64,144.62,6.9146]
[1720004075021,0.34,144.65,144.62,6.9146]
[1720004075227,32.63,144.65,144.62,6.9146]
[1720004076545,32.63,144.65,144.64,6.9137]
[1720004076949,32.29,144.65,144.64,6.9137]
[1720004077123,32.29,144.65,144.63,17.285]
[1720004077124,32.29,144.68,144.65,6.913]
[1720004077325,6.37393387,144.7,144.65,17.283]
[1720004077538,32.29,144.69,144.65,17.283]
[1720004077738,32.29,144.66,144.63,6.9141]
[1720004078046,32.29,144.66,144.6,13.1613]
[1720004078348,0.17,144.65,144.61,6.9151]
[1720004078554,0.34,144.65,144.6,13.1615]
[1720004079149,0.34,144.65,144.61,6.915]
[1720004079447,32.29,144.63,144.6,6.9155]
[1720004079634,0.34,144.62,144.59,17.2895]
[1720004079836,0.34,144.62,144.59,24.2053]
[1720004080033,0.34,144.62,144.57,6.9167]
[1720004080345,32.29,144.6,144.57,6.9167]
[1720004080522,0.34,144.59,144.56,23.8088]
[1720004080728,0.34,144.59,144.58,6.9165]
[1720004083145,32.29,144.6,144.58,17.2912]
[1720004083340,0.34,144.61,144.58,17.2912]
[1720004083734,0.34,144.61,144.58,24.2074]
[1720004085353,0.34,144.61,144.56,13.4333]
[1720004086034,0.34,144.61,144.57,17.2925]
[1720004086231,0.34,144.61,144.58,6.9161]
[1720004086425,21.69593387,144.65,144.59,17.29]
[1720004086639,32.29,144.63,144.61,6.915]
[1720004087450,32.29,144.63,144.6,6.9154]
[1720004087654,32.29,144.63,144.59,24.2059]
[1720004087955,61.7676827,144.69,144.6,6.9155]
[1720004088155,61.7676827,144.69,144.59,17.29]
[1720004088156,32.29,144.64,144.61,6.9151]
[1720004088339,0.34,144.63,144.61,6.9151]
[1720004089064,0.34,144.63,144.6,6.9154]
[1720004089432,0.34,144.63,144.59,17.29]
[1720004089934,0.34,144.63,144.6,6.9155]
[1720004091070,0.34,144.63,144.59,17.29]
[1720004091071,0.34,144.63,144.61,6.915]
[1720004092675,0.34,144.63,144.59,17.29]
[1720004092853,0.34,144.63,144.6,6.9151]
[1720004093052,0.34,144.63,144.61,6.9149]
[1720004093758,16.11,144.62,144.61,6.9149]
[1720004095474,16.11,144.62,144.59,24.206]
[1720004095972,64.44,144.62,144.59,24.206]
[1720004096178,64.44,144.62,144.6,6.9156]
[1720004096360,29.4776827,144.69,144.61,17.2878]
[1720004096542,16.11,144.62,144.61,24.2029]
[1720004098396,93.9176827,144.69,144.64,6.9134]
[1720004098598,16.11,144.65,144.64,6.9134]
[1720004099280,16.11,144.65,144.63,24.1986]
[1720004099880,16.11,144.64,144.63,17.2846]
[1720004101691,16.11,144.64,144.63,24.1987]
[1720004102077,0.34,144.68,144.63,24.1987]
[1720004102395,0.34,144.68,144.63,17.2846]
[1720004102599,70.81393387,144.69,144.64,6.9133]
[1720004102893,16.11,144.65,144.64,6.9133]
[1720004106485,3.76491215,144.7,144.64,6.9133]
[1720004106670,16.11,144.65,144.64,6.9133]
[1720004107410,0.34,144.69,144.64,6.9133]
[1720004107581,16.11,144.65,144.64,6.9133]
[1720004108079,64.78,144.69,144.65,6.9132]
[1720004108279,16.11,144.66,144.65,6.9132]
[1720004108689,0.34,144.69,144.65,6.9132]
[1720004108886,0.34,144.69,144.62,13.1486]
[1720004108887,16.11,144.66,144.62,13.1486]
[1720004109094,16.11,144.63,144.62,6.9143]
[1720004109388,0.34,144.67,144.63,6.9141]
[1720004109694,16.11,144.64,144.63,6.9141]
[1720004110699,16.28,144.64,144.62,24.2001]
[1720004111003,16.11,144.63,144.62,24.2001]
[1720004112297,0.17,144.65,144.63,6.9139]
[1720004112497,16.11,144.64,144.63,6.9139]
[1720004112706,16.45,144.64,144.63,6.9139]
[1720004113313,64.44,144.69,144.64,17.284]
[1720004113491,0.34,144.68,144.65,6.913]
[1720004113693,16.11,144.66,144.65,6.913]
[1720004113900,16.45,144.66,144.65,6.913]
[1720004114084,16.45,144.66,144.61,17.2871]
[1720004114281,0.34,144.65,144.63,6.9141]
[1720004114502,16.11,144.64,144.63,24.1995]
[1720004115200,0.34,144.65,144.64,6.9137]
[1720004115406,16.45,144.65,144.64,6.9137]
[1720004115905,0.34,144.65,144.64,6.9137]
[1720004116079,16.45,144.65,144.64,6.9137]
[1720004117682,0.34,144.65,144.64,6.9137]
[1720004117888,16.45,144.65,144.64,6.9137]
[1720004119101,16.45,144.65,144.62,6.9145]
[1720004119491,16.11,144.63,144.62,6.9145]
[1720004119707,16.28,144.63,144.62,6.9145]
[1720004119908,16.11,144.63,144.62,6.9145]
[1720004120078,16.28,144.63,144.62,6.9145]
[1720004120284,32.56,144.63,144.61,17.2878]
[1720004120483,32.39,144.62,144.6,6.9155]
[1720004120793,16.28,144.61,144.59,24.2061]
[1720004120993,16.11,144.6,144.59,24.2063]
[1720004121309,16.45,144.6,144.59,24.2063]
[1720004121919,16.45,144.6,144.56,16.2713]
[1720004121920,16.45,144.6,144.56,24.2099]
[1720004122113,16.11,144.57,144.56,24.2099]
[1720004122398,16.45,144.57,144.56,24.2099]
[1720004122617,16.45,144.57,144.56,17.2928]
[1720004123101,16.45,144.57,144.52,15.4293]
[1720004123102,32.56,144.57,144.53,17.2967]
[1720004123308,64.44,144.62,144.53,24.2156]
[1720004123309,16.11,144.54,144.53,24.2156]
[1720004123493,16.45,144.54,144.53,24.2156]
[1720004123897,16.45,144.54,144.53,17.2967]
[1720004124289,16.45,144.54,144.53,24.2156]
[1720004125194,16.45,144.54,144.53,17.2967]
[1720004126198,16.11,144.55,144.53,17.2967]
[1720004126400,16.28,144.54,144.53,24.2156]
[1720004126586,16.45,144.54,144.53,24.2156]
[1720004128484,15.972,144.6,144.53,17.2967]
[1720004128691,15.972,144.6,144.56,6.9171]
[1720004128901,16.11,144.57,144.56,6.9171]
[1720004129689,16.4193,144.65,144.57,17.2918]
[1720004129894,64.44,144.62,144.59,6.916]
[1720004130189,16.11,144.6,144.59,24.2059]
[1720004130710,16.11,144.6,144.59,17.2899]
[1720004130906,20.35561213,144.65,144.59,17.2899]
[1720004131094,16.11,144.6,144.59,24.206]
[1720004131707,64.44,144.62,144.59,24.206]
[1720004131913,16.11,144.6,144.59,17.2899]
[1720004132101,64.44,144.62,144.59,24.2058]
[1720004132295,3.93631213,144.65,144.6,6.9152]
[1720004132492,16.11,144.61,144.59,24.2058]
[1720004132691,16.11,144.6,144.59,17.2899]
[1720004132886,16.11,144.6,144.58,6.9163]
[1720004133097,16.11,144.59,144.56,17.2928]
[1720004133306,64.44,144.62,144.56,17.2928]
[1720004133517,16.11,144.57,144.56,24.2103]
[1720004134305,0.34,144.61,144.58,17.291]
[1720004134488,0.34,144.61,144.6,6.9156]
[1720004134694,16.45,144.61,144.6,6.9156]
[1720004134997,16.11,144.61,144.6,6.9156]
[1720004135612,16.11,144.61,144.58,24.2072]
[1720004135796,16.11,144.59,144.58,24.2072]
[1720004136393,64.44,144.62,144.55,51.1689]
[1720004136394,7.47264883,144.66,144.62,6.9145]
[1720004136722,3.36144383,144.67,144.6,6.3903]
[1720004137022,3.36144383,144.67,144.62,6.9145]
[1720004137317,16.11,144.63,144.62,6.9145]
[1720004137819,16.11,144.63,144.62,6.9146]
[1720004138317,3.36144383,144.67,144.62,6.9146]
[1720004138535,16.11,144.63,144.62,6.9146]
[1720004138898,3.36144383,144.67,144.63,6.914]
[1720004139094,16.11,144.64,144.63,6.914]
[1720004139306,16.45,144.64,144.63,6.914]
[1720004139505,3.36144383,144.67,144.65,6.9131]
[1720004139819,16.11,144.66,144.65,6.9131]
[1720004140019,3.36144383,144.67,144.65,6.9131]
[1720004140407,16.11,144.66,144.65,6.9131]
[1720004140610,3.36144383,144.67,144.65,6.9131]
[1720004140808,16.45,144.66,144.65,6.9131]
[1720004141299,16.45,144.66,144.64,24.1967]
[1720004142605,3.36144383,144.67,144.65,6.9132]
[1720004142813,16.11,144.66,144.65,6.9132]
[1720004143825,3.36144383,144.67,144.66,6.9127]
[1720004144123,19.47144383,144.67,144.66,6.9127]
[1720004147813,3.36144383,144.67,144.66,6.9127]
[1720004148133,15.19,144.76,144.66,6.9127]
[1720004148437,79.63,144.76,144.73,17.2727]
[1720004148601,79.63,144.76,144.7,17.2767]
[1720004148602,15.19,144.76,144.7,17.2767]
[1720004148799,16.11,144.71,144.7,17.2767]
[1720004148999,16.11,144.71,144.7,24.1874]
[1720004150528,16.11,144.71,144.67,24.1925]
[1720004150733,16.11,144.68,144.67,24.1925]
[1720004150927,16.11,144.68,144.66,6.9126]
[1720004151102,0.34,144.7,144.67,6.9122]
[1720004151502,0.34,144.7,144.68,6.9116]
[1720004152135,16.11,144.69,144.68,6.9116]
[1720004152799,0.34,144.7,144.68,6.9116]
[1720004152999,16.11,144.69,144.68,6.9116]
[1720004154912,16.45,144.69,144.66,17.2815]
[1720004155113,0.34,144.7,144.67,6.9119]
[1720004155602,16.11,144.68,144.67,6.9119]
[1720004156806,0.34,144.7,144.68,6.9117]
[1720004157124,79.63,144.76,144.69,6.9109]
[1720004157430,16.11,144.7,144.69,6.9109]
[1720004160020,0.17,144.75,144.7,24.1874]
[1720004160525,0.17,144.75,144.72,6.9098]
[1720004160702,16.11,144.73,144.72,6.9098]
[1720004160906,0.17,144.75,144.71,6.9101]
[1720004161227,16.11,144.72,144.71,6.9101]
[1720004161420,0.17,144.75,144.7,24.1877]
[1720004161603,16.11,144.71,144.7,17.2769]
[1720004161808,0.17,144.75,144.7,17.2769]
[1720004162008,16.11,144.71,144.7,17.2769]
[1720004162209,16.11,144.71,144.7,24.1876]
[1720004162919,16.11,144.71,144.7,17.2769]
[1720004163132,16.11,144.71,144.69,6.9111]
[1720004163309,16.11,144.7,144.69,6.9111]
[1720004164437,0.34,144.75,144.71,6.9103]
[1720004164644,16.11,144.72,144.71,6.9103]
[1720004165132,0.34,144.75,144.71,6.9103]
[1720004165345,0.17,144.75,144.71,17.2758]
[1720004165650,64.44,144.76,144.73,17.273]
[1720004165823,16.11,144.74,144.73,17.273]
[1720004166946,16.45,144.74,144.73,17.273]
[1720004167426,16.45,144.74,144.71,6.9102]
[1720004167630,16.11,144.72,144.71,6.9102]
[1720004167936,16.28,144.72,144.71,6.9102]
[1720004169334,16.28,144.72,144.68,6.9114]
[1720004169650,16.11,144.69,144.68,6.9114]
[1720004169951,0.34,144.71,144.69,6.9113]
[1720004170261,16.11,144.7,144.68,6.9116]
[1720004170550,16.11,144.69,144.68,6.9116]
[1720004170742,0.34,144.71,144.69,6.9111]
[1720004170944,16.11,144.7,144.69,6.9111]
[1720004173648,16.11,144.7,144.68,6.9116]
[1720004173974,0.34,144.71,144.68,6.9116]
[1720004174146,16.11,144.69,144.68,6.9116]
[1720004174671,16.11,144.69,144.67,24.1918]
[1720004174956,0.34,144.71,144.65,6.0027]
[1720004174957,16.11,144.68,144.65,6.0027]
[1720004175169,0.34,144.71,144.66,6.9124]
[1720004175358,16.11,144.67,144.66,6.9124]
[1720004178473,0.34,144.71,144.7,24.1879]
[1720004178968,16.45,144.71,144.7,24.1879]
[1720004180449,0.34,144.71,144.7,24.1879]
[1720004180774,15.7305,144.74,144.71,6.9101]
[1720004180950,16.11,144.72,144.71,6.9101]
[1720004181151,16.45,144.72,144.71,6.9101]
[1720004181352,16.45,144.72,144.7,24.1878]
[1720004181655,16.11,144.71,144.7,24.1878]
[1720004183485,0.34,144.72,144.71,6.9103]
[1720004183652,16.45,144.72,144.71,6.9103]
[1720004183968,16.45,144.72,144.7,24.1877]
[1720004184166,0.34,144.72,144.7,24.1877]
[1720004184476,16.11,144.71,144.7,24.1877]
[1720004185660,15.9113,144.77,144.71,6.91]
[1720004185855,16.11,144.72,144.71,6.91]
[1720004186173,16.11,144.72,144.7,24.1877]
[1720004186479,16.11,144.71,144.7,24.1877]
[1720004188649,15.9113,144.77,144.7,24.1877]
[1720004188956,16.11,144.71,144.7,24.1879]
[1720004189459,16.11,144.71,144.68,6.9114]
[1720004189460,16.45,144.71,144.68,6.9114]
[1720004189663,16.11,144.69,144.67,17.2804]
[1720004189861,16.11,144.68,144.67,17.2804]
[1720004190261,16.11,144.68,144.67,24.1926]
[1720004191251,0.34,144.71,144.7,6.9108]
[1720004191472,16.45,144.71,144.7,6.9108]
[1720004191669,15.9113,144.77,144.72,6.9098]
[1720004191974,16.11,144.73,144.72,6.9098]
[1720004193272,16.45,144.73,144.72,6.9098]
[1720004193475,16.45,144.73,144.71,24.1859]
[1720004193778,16.11,144.72,144.71,17.2757]
[1720004194074,16.11,144.72,144.68,17.2785]
[1720004194274,16.11,144.69,144.68,24.1903]
[1720004194979,0.34,144.73,144.7,6.9107]
[1720004195151,0.34,144.73,144.71,6.9101]
[1720004195356,16.11,144.72,144.71,6.9101]
[1720004196671,16.11,144.72,144.67,17.2797]
[1720004196875,0.34,144.71,144.69,6.9111]
[1720004197076,16.11,144.7,144.67,17.2797]
[1720004197280,16.11,144.68,144.67,24.1917]
[1720004199067,16.45,144.68,144.64,17.2835]
[1720004199282,16.11,144.65,144.64,24.1968]
[1720004201687,16.11,144.65,144.64,17.2835]
[1720004201893,16.45,144.65,144.64,17.2835]
[1720004202862,16.45,144.65,144.64,24.1972]
[1720004204473,16.45,144.65,144.61,17.2873]
[1720004204662,16.45,144.65,144.61,24.2021]
[1720004204663,32.22,144.62,144.61,24.2021]
[1720004205491,32.56,144.62,144.61,17.2873]
[1720004206372,32.56,144.62,144.61,24.2024]
[1720004207665,0.34,144.62,144.61,17.2873]
[1720004207867,32.56,144.62,144.61,17.2873]
[1720004208460,32.56,144.62,144.6,6.9154]
[1720004208764,16.45,144.61,144.58,24.2067]
[1720004209086,16.11,144.59,144.58,24.2067]
[1720004209465,16.11,144.59,144.56,6.917]
[1720004209667,16.11,144.57,144.56,6.9175]
[1720004210192,16.11,144.57,144.55,32.5928]
[1720004210398,0.17,144.58,144.55,24.2121]
[1720004210399,16.11,144.56,144.55,24.2121]
[1720004210893,16.11,144.56,144.55,17.2941]
[1720004211103,32.56,144.56,144.54,6.9183]
[1720004211303,32.56,144.55,144.54,6.9183]
[1720004211501,16.45,144.55,144.54,6.9183]
[1720004211879,0.34,144.55,144.54,6.9183]
[1720004214112,0.34,144.55,144.53,6.9188]
[1720004214282,0.34,144.56,144.52,17.2976]
[1720004214603,6.37393387,144.64,144.56,34.5868]
[1720004214804,38.63393387,144.64,144.56,34.5868]
[1720004215015,38.63393387,144.64,144.58,17.291]
[1720004215184,32.26,144.61,144.58,17.291]
[1720004215384,32.26,144.61,144.55,17.2946]
[1720004216383,32.26,144.57,144.52,24.2177]
[1720004216802,0.34,144.56,144.52,24.2177]
[1720004216989,0.34,144.56,144.54,6.9183]
[1720004217685,0.34,144.56,144.53,6.9188]
[1720004218506,0.34,144.56,144.52,24.2177]
[1720004219087,0.34,144.56,144.53,6.9188]
[1720004219600,0.34,144.56,144.52,24.2177]
[1720004220202,0.34,144.56,144.53,6.9189]
[1720004221008,0.34,144.56,144.52,24.2177]
[1720004221189,0.34,144.56,144.51,6.2871]
[1720004221384,32.26,144.54,144.5,6.9202]
[1720004221588,0.34,144.53,144.48,6.9212]
[1720004222011,0.34,144.53,144.49,6.9208]
[1720004222505,0.34,144.53,144.48,24.2242]
[1720004222712,32.26,144.51,144.48,24.2242]
[1720004222893,0.34,144.5,144.48,24.2242]
[1720004223097,0.17,144.53,144.48,17.303]
[1720004223510,0.34,144.54,144.48,17.303]
[1720004223694,32.26,144.51,144.48,24.224]
[1720004223894,0.34,144.5,144.48,24.224]
[1720004225596,0.34,144.5,144.49,6.9208]
[1720004226390,16.4929,144.55,144.52,17.2983]
[1720004226586,32.26,144.54,144.46,21.8273]
[1720004226787,0.34,144.53,144.49,17.3014]
[1720004227006,0.34,144.53,144.49,24.2222]
[1720004227212,32.6,144.53,144.49,24.2222]
[1720004229009,32.6,144.53,144.46,39.1323]
[1720004229207,32.26,144.5,144.46,23.4359]
[1720004229412,0.34,144.49,144.46,30.3578]
[1720004229596,0.34,144.49,144.46,24.2269]
[1720004230396,0.34,144.49,144.43,17.3089]
[1720004230705,0.34,144.49,144.45,6.9225]
[1720004231093,32.26,144.47,144.43,24.2323]
[1720004231299,0.34,144.46,144.43,24.2323]
[1720004232106,0.34,144.46,144.44,6.9232]
[1720004232717,0.34,144.46,144.43,24.2324]
[1720004233101,0.34,144.46,144.44,6.9231]
[1720004233916,0.34,144.46,144.43,24.2325]
[1720004234125,0.34,144.46,144.44,6.9229]
[1720004235817,0.34,144.46,144.4,17.312]
[1720004236436,32.26,144.44,144.4,17.312]
[1720004236726,0.34,144.43,144.41,6.9244]
[1720004237017,0.34,144.43,144.4,17.312]
[1720004237217,32.26,144.44,144.43,6.9237]
[1720004237424,0.17,144.44,144.43,6.9237]
[1720004237719,3.99912956,144.47,144.44,6.9231]
[1720004237902,0.34,144.46,144.44,6.9231]
[1720004238107,3.99912956,144.47,144.44,17.3077]
[1720004238304,32.26,144.46,144.38,22.945]
[1720004238517,0.17,144.45,144.38,22.945]
[1720004238824,0.17,144.45,144.43,6.9234]
[1720004239216,0.17,144.45,144.42,24.2346]
[1720004239422,0.34,144.45,144.43,6.9237]
[1720004240205,0.34,144.45,144.42,24.2345]
[1720004240605,0.34,144.45,144.42,17.3105]
[1720004240919,0.34,144.45,144.4,6.925]
[1720004241140,0.34,144.45,144.41,17.3111]
[1720004241318,32.6,144.45,144.42,6.9239]
[1720004242012,32.6,144.45,144.41,24.2357]
[1720004242604,32.6,144.45,144.39,6.9253]
[1720004242812,0.34,144.45,144.4,6.9251]
[1720004243006,32.26,144.43,144.4,6.9251]
[1720004243205,0.17,144.42,144.4,6.9251]
[1720004243519,0.34,144.42,144.41,6.9247]
[1720004243709,0.34,144.42,144.4,24.2379]
[1720004244112,0.34,144.42,144.41,6.9247]
[1720004244314,0.17,144.42,144.41,6.9247]
[1720004245116,39.1823,144.46,144.42,6.9241]
[1720004245414,6.9246,144.42,144.38,6.9258]
[1720004245617,6.9246,144.42,144.37,24.2425]
[1720004245826,0.34,144.41,144.39,17.314]
[1720004246233,0.34,144.41,144.35,0.8151834]
[1720004246234,32.26,144.4,144.35,0.8151834]
[1720004246439,7.266,144.39,144.35,0.8151834]
[1720004246729,6.9261,144.38,144.35,0.8151834]
[1720004246920,0.34,144.37,144.35,0.8151834]
[1720004247625,0.34,144.38,144.35,7.7425834]
[1720004248208,0.17,144.37,144.36,6.9269]
[1720004248424,0.17,144.39,144.36,6.9269]
[1720004248929,0.34,144.39,144.37,6.9262]
[1720004249731,39.1839,144.43,144.38,6.9261]
[1720004249927,39.1839,144.43,144.39,6.9256]
[1720004250229,32.26,144.43,144.39,6.9256]
[1720004250531,39.184,144.43,144.39,6.9256]
[1720004250712,0.17,144.42,144.38,6.926]
[1720004250913,39.184,144.43,144.39,6.9254]
[1720004251114,32.26,144.43,144.39,6.9254]
[1720004251315,32.26,144.43,144.4,6.925]
[1720004252337,6.923,144.45,144.41,6.9245]
[1720004252936,6.923,144.45,144.4,6.925]
[1720004253136,6.9234,144.44,144.4,6.925]
[1720004254135,0.34,144.43,144.39,24.2391]
[1720004254444,7.2638,144.43,144.39,24.2391]
[1720004256034,21.30402956,144.47,144.36,49.9506]
[1720004256035,3.99912956,144.47,144.4,6.1815]
[1720004256243,6.9229,144.45,144.4,13.1062]
[1720004256444,6.9229,144.45,144.4,6.925]
[1720004256645,6.9229,144.45,144.41,6.9246]
[1720004257051,39.1825,144.46,144.41,6.9246]
[1720004257235,0.34,144.45,144.39,17.3136]
[1720004257545,6.9234,144.44,144.39,24.239]
[1720004257844,0.34,144.43,144.39,17.3136]
[1720004258036,27.39312956,144.47,144.42,6.9242]
[1720004258345,27.39312956,144.47,144.44,6.9232]
[1720004258346,52.73122956,144.47,144.44,6.9232]
[1720004258525,36.25912956,144.47,144.44,6.9232]
[1720004259439,43.18092956,144.47,144.43,24.2326]
[1720004259744,0.17,144.46,144.41,6.9242]
[1720004259939,7.2624,144.46,144.42,6.9241]
[1720004261041,6.9228,144.45,144.4,17.3119]
[1720004261246,0.34,144.46,144.37,17.3161]
[1720004261247,0.34,144.44,144.37,17.3161]
[1720004261435,6.9239,144.43,144.39,6.9254]
[1720004261631,0.34,144.42,144.39,24.2395]
[1720004261946,0.17,144.42,144.4,6.925]
[1720004262246,0.17,144.43,144.4,6.925]
[1720004262444,6.9249,144.41,144.37,6.9264]
[1720004262645,6.9271,144.36,144.35,0.8151834]
[1720004262938,7.2671,144.36,144.35,0.8151834]
[1720004263137,23.6256,144.36,144.35,0.8151834]
[1720004263341,23.6256,144.36,144.35,8.34e-05]
[1720004263533,31.24638137,144.36,144.35,8.34e-05]
[1720004267246,23.6256,144.36,144.35,8.34e-05]
[1720004269458,7.2671,144.36,144.35,8.34e-05]
[1720004269633,39.5271,144.36,144.35,8.34e-05]
[1720004270454,39.1871,144.36,144.35,8.34e-05]
[1720004270862,6.9266,144.37,144.35,8.34e-05]
[1720004271169,39.1866,144.37,144.35,8.34e-05]
[1720004271363,6.9271,144.36,144.35,8.34e-05]
[1720004271531,39.1867,144.37,144.35,8.34e-05]
[1720004272767,0.34,144.36,144.35,8.34e-05]
[1720004272959,7.2671,144.36,144.35,8.34e-05]